[Event "WSCC 50 Open 2017"]
[Site "?"]
[Date "2017.11.09"]
[Round "3"]
[White "Reprintsev, Alexander"]
[Black "Vebic, Kasem"]
[Result "1-0"]
[ECO "B02"]
[WhiteElo "2361"]
[BlackElo "2118"]
[PlyCount "53"]
[EventDate "2017.??.??"]
[EventType "swiss"]
[EventCountry "ITA"]
[SourceTitle "Acqui Terme"]
[TimeControl "40/5400+30:1800+30"]
[WhiteClock "0:37:20"]
[BlackClock "0:00:51"]

1. e4 {[%emt 0:12:16]} Nf6 {[%emt 0:00:51]} 2. e5 {[%emt 0:01:45]} Nd5 {[%emt 0:00:13]} 3. c4 {[%emt 0:00:09]} Nb6 {[%emt 0:01:30]} 4. Nc3 {[%emt 0:00:42]} d6 {[%emt 0:01:51]} 5. exd6 {[%emt 0:00:53]} cxd6 {[%emt 0:00:21]} 6. d4 {[%emt 0:00:11]} Nc6 {[%emt 0:00:23]} 7. Be3 {[%emt 0:00:39]} Bf5 {[%emt 0:01:30]} 8. Nf3 {[%emt 0:00:58]} Qc8 {[%emt 0:02:11]} 9. d5 {[%emt 0:04:45]} Nb4 {[%emt 0:02:34]} 10. Nd4 {[%emt 0:00:16]} Bg6 {[%emt 0:00:53]} 11. a3 {[%emt 0:04:23]} Na6 {[%emt 0:00:50]} 12. Rc1 {[%emt 0:09:36]} Nc5 {[%emt 0:09:49]} 13. b4 {[%emt 0:01:49]} Ne4 {[%emt 0:01:07]} 14. Nxe4 {[%emt 0:05:53]} Bxe4 {[%emt 0:00:11]} 15. Nb5 {[%emt 0:00:06]} Qd8 {[%emt 0:16:34]} 16. Qd4 {[%emt 0:03:38]} Bf5 {[%emt 0:02:06]} 17. c5 {[%emt 0:00:44]} dxc5 {[%emt 0:19:09]} 18. Qe5 {[%emt 0:00:25]} Nxd5 {[%emt 0:09:32]} 19. Qxd5 {[%emt 0:04:05]} Qxd5 {[%emt 0:02:02]} 20. Nc7+ {[%emt 0:00:02]} Kd8 {[%emt 0:00:33]} 21. Nxd5 {[%emt 0:00:03]} e6 {[%emt 0:00:16]} 22. Bg5+ {[%emt 0:04:20]} f6 {[%emt 0:08:56]} 23. Nxf6 {[%emt 0:00:07]} h6 {[%emt 0:01:37]} 24. Bh4 {[%emt 0:00:35]} cxb4 {[%emt 0:05:04]} 25. g4 {[%emt 0:01:03]} Be7 {[%emt 0:09:48]} 26. gxf5 {[%emt 0:05:43]} gxf6 {[%emt 0:02:48]} 27. Bc4 {[%emt 0:01:04]} 1-0

[Event "WSCC 50 Open 2017"]
[Site "?"]
[Date "2017.11.09"]
[Round "3"]
[White "Petran, Peter"]
[Black "Vaglio Munoz, Jaime"]
[Result "1/2-1/2"]
[ECO "A00"]
[WhiteElo "2330"]
[BlackElo "2170"]
[PlyCount "110"]
[EventDate "2017.??.??"]
[EventType "swiss"]
[EventCountry "ITA"]
[SourceTitle "Acqui Terme"]
[TimeControl "40/5400+30:1800+30"]
[WhiteClock "0:26:40"]
[BlackClock "0:45:26"]

1. g3 {[%emt 0:03:18]} e5 {[%emt 0:00:04]} 2. c4 {[%emt 0:00:14]} Nf6 {[%emt 0:00:04]} 3. Bg2 {[%emt 0:00:06]} Bc5 {[%emt 0:00:04]} 4. Nc3 {[%emt 0:00:23]} O-O {[%emt 0:00:09]} 5. e3 {[%emt 0:00:20]} Re8 {[%emt 0:00:19]} 6. Nge2 {[%emt 0:00:28]} Nc6 {[%emt 0:00:58]} 7. d3 {[%emt 0:00:41]} d6 {[%emt 0:00:09]} 8. O-O {[%emt 0:00:15]} Bg4 {[%emt 0:00:14]} 9. h3 {[%emt 0:00:53]} Bf5 {[%emt 0:00:48]} 10. a3 {[%emt 0:03:28]} a5 {[%emt 0:00:03]} 11. Kh2 {[%emt 0:01:57]} h6 {[%emt 0:02:21]} 12. Rb1 {[%emt 0:06:15]} Qd7 {[%emt 0:00:17]} 13. Nd5 {[%emt 0:05:06]} Nxd5 {[%emt 0:00:27]} 14. cxd5 {[%emt 0:00:04]} Ne7 {[%emt 0:03:16]} 15. e4 {[%emt 0:02:50]} Bh7 {[%emt 0:01:18]} 16. f4 {[%emt 0:00:22]} c6 {[%emt 0:04:34]} 17. f5 {[%emt 0:06:24]} f6 {[%emt 0:06:35]} 18. b4 {[%emt 0:05:57]} axb4 {[%emt 0:00:05]} 19. axb4 {[%emt 0:00:04]} Bb6 {[%emt 0:00:12]} 20. dxc6 {[%emt 0:00:12]} bxc6 {[%emt 0:04:35]} 21. d4 {[%emt 0:02:05]} Red8 {[%emt 0:04:16]} 22. g4 {[%emt 0:02:25]} Qa7 {[%emt 0:00:54]} 23. Bb2 {[%emt 0:00:51]} Qa4 {[%emt 0:03:19]} 24. Qd2 {[%emt 0:01:15]} Rab8 {[%emt 0:13:40]} 25. Rfd1 {[%emt 0:09:09]} Bc7 {[%emt 0:00:27]} 26. Bc3 {[%emt 0:06:02]} Kf8 {[%emt 0:00:13]} 27. Kh1 {[%emt 0:01:48]} Bg8 {[%emt 0:00:08]} 28. d5 {[%emt 0:02:09]} Qb5 {[%emt 0:02:06]} 29. Ng3 {[%emt 0:00:45]} Bf7 {[%emt 0:02:43]} 30. Rbc1 {[%emt 0:04:37]} Ra8 {[%emt 0:00:27]} 31. Bf1 {[%emt 0:05:00]} Qb6 {[%emt 0:03:39]} 32. Bg2 {[%emt 0:02:08]} Ra3 {[%emt 0:00:23]} 33. Ra1 {[%emt 0:01:42]} Rda8 {[%emt 0:02:01]} 34. Rxa3 {[%emt 0:01:48]} Rxa3 {[%emt 0:00:02]} 35. Qb2 {[%emt 0:03:29]} Qa7 {[%emt 0:00:46]} 36. dxc6 {[%emt 0:00:42]} Nxc6 {[%emt 0:08:05]} 37. Ra1 {[%emt 0:10:40]} Rxa1+ {[%emt 0:00:19]} 38. Qxa1 {[%emt 0:00:02]} Qxa1+ {[%emt 0:00:27]} 39. Bxa1 {[%emt 0:00:02]} Nxb4 {[%emt 0:00:09]} 40. Bc3 {[%emt 0:00:06]} Nd3 {[%emt 0:31:14]} 41. Bf1 {[%emt 0:30:53]} Nc5 {[%emt 0:00:25]} 42. Bb4 {[%emt 0:02:39]} Bb6 {[%emt 0:00:23]} 43. Bb5 {[%emt 0:02:00]} Bb3 {[%emt 0:00:30]} 44. Bc6 {[%emt 0:01:35]} Bc4 {[%emt 0:08:11]} 45. Kg2 {[%emt 0:00:22]} Bc7 {[%emt 0:02:34]} 46. Kf3 {[%emt 0:01:34]} Na6 {[%emt 0:00:25]} 47. Ba3 {[%emt 0:00:56]} Nb8 {[%emt 0:00:09]} 48. Bb7 {[%emt 0:05:00]} Nd7 {[%emt 0:00:50]} 49. Ne2 {[%emt 0:00:00]} Bxe2+ {[%emt 0:00:00]} 50. Kxe2 {[%emt 0:00:00]} Ke7 {[%emt 0:00:00]} 51. Bc6 {[%emt 0:00:00]} Nb6 {[%emt 0:00:00]} 52. Kd3 {[%emt 0:00:00]} Bb8 {[%emt 0:00:00]} 53. Bb4 {[%emt 0:00:00]} Nc8 {[%emt 0:00:00]} 54. Ba5 {[%emt 0:00:00]} Na7 {[%emt 0:00:00]} 55. Ba4 {[%emt 0:00:00]} Nc8 {[%emt 0:00:00]} 1/2-1/2

[Event "WSCC 50 Open 2017"]
[Site "?"]
[Date "2017.11.09"]
[Round "3"]
[White "Certek, Pavel"]
[Black "Verrascina, Roberto"]
[Result "1-0"]
[ECO "A40"]
[WhiteElo "2295"]
[BlackElo "2152"]
[PlyCount "101"]
[EventDate "2017.??.??"]
[EventType "swiss"]
[EventCountry "ITA"]
[SourceTitle "Acqui Terme"]
[TimeControl "40/5400+30:1800+30"]

1. d4 g6 2. Nf3 Bg7 3. g3 Nf6 4. Bg2 O-O 5. O-O d6 6. b3 e5 7. dxe5 Ng4 8. Bb2 Nd7 9. Qd2 Ngxe5 10. Nxe5 Nxe5 11. c4 Qe7 12. Nc3 c6 13. Rad1 Rd8 14. Ba3 Bf8 15. Ne4 Bf5 16. Nxd6 Qe6 17. c5 Rd7 18. f4 Ng4 19. e4 Bxe4 20. Bxe4 Bxd6 21. cxd6 Qxe4 22. Rde1 Qf5 23. h3 Nf6 24. Kh2 Re8 25. g4 Qd5 26. Qxd5 cxd5 27. Rxe8+ Nxe8 28. Rd1 f6 29. Rxd5 Kf7 30. f5 Ng7 31. Kg3 Ne8 32. Kf4 Ng7 33. Ra5 a6 34. Rd5 Ne8 35. Ke4 Kg7 36. Rd2 Kf7 37. Rd3 Ng7 38. Rc3 Ne8 39. Rc8 Ng7 40. Rh8 h5 41. Rh6 gxf5+ 42. gxf5 Rd8 43. Kf4 b5 44. Bc5 Ne8 45. Rxh5 Nxd6 46. Rh7+ Kg8 47. Ra7 b4 48. Rxa6 Nb7 49. Be7 Rd4+ 50. Ke3 Rh4 51. Ra7 1-0

[Event "WSCC 50 Open 2017"]
[Site "?"]
[Date "2017.11.09"]
[Round "3"]
[White "Chapman, Terry P D"]
[Black "Contin, Daniel"]
[Result "1/2-1/2"]
[ECO "B38"]
[WhiteElo "2196"]
[BlackElo "2272"]
[PlyCount "140"]
[EventDate "2017.??.??"]
[EventType "swiss"]
[EventCountry "ITA"]
[SourceTitle "Acqui Terme"]
[TimeControl "40/5400+30:1800+30"]
[WhiteClock "0:02:34"]
[BlackClock "0:08:28"]

1. Nf3 {[%emt 0:00:00]} c5 {[%emt 0:03:37]} 2. c4 {[%emt 0:00:00]} Nc6 {[%emt 0:00:18]} 3. d4 {[%emt 0:00:00]} cxd4 {[%emt 0:00:25]} 4. Nxd4 {[%emt 0:00:03]} g6 {[%emt 0:00:14]} 5. e4 {[%emt 0:07:29]} Bg7 {[%emt 0:01:09]} 6. Be3 {[%emt 0:00:14]} Nf6 {[%emt 0:00:19]} 7. Nc3 {[%emt 0:00:05]} O-O {[%emt 0:00:44]} 8. Be2 {[%emt 0:00:12]} d6 {[%emt 0:00:26]} 9. O-O {[%emt 0:00:20]} Bd7 {[%emt 0:00:53]} 10. Re1 {[%emt 0:03:38]} Rc8 {[%emt 0:05:12]} 11. Rc1 {[%emt 0:02:05]} Ne5 {[%emt 0:02:56]} 12. b3 {[%emt 0:02:56]} Neg4 {[%emt 0:00:46]} 13. Bg5 {[%emt 0:15:48]} Qb6 {[%emt 0:04:53]} 14. Bh4 {[%emt 0:07:05]} Bh6 {[%emt 0:05:11]} 15. Rb1 {[%emt 0:07:23]} Qa5 {[%emt 0:06:15]} 16. Nd5 {[%emt 0:22:04]} Nxd5 {[%emt 0:02:34]} 17. exd5 {[%emt 0:00:16]} Nf6 {[%emt 0:01:15]} 18. Bf3 {[%emt 0:03:36]} Rfe8 {[%emt 0:00:32]} 19. Re2 {[%emt 0:06:07]} g5 {[%emt 0:02:49]} 20. Qc1 {[%emt 0:02:29]} e5 {[%emt 0:09:56]} 21. dxe6 {[%emt 0:04:45]} fxe6 {[%emt 0:01:31]} 22. b4 {[%emt 0:01:58]} Qd8 {[%emt 0:15:31]} 23. Bxg5 {[%emt 0:01:07]} Bxg5 {[%emt 0:02:51]} 24. Qxg5+ {[%emt 0:00:02]} Kh8 {[%emt 0:00:08]} 25. Nb5 {[%emt 0:04:42]} Rg8 {[%emt 0:01:37]} 26. Qd2 {[%emt 0:01:04]} Bxb5 {[%emt 0:01:11]} 27. cxb5 {[%emt 0:00:02]} Qe7 {[%emt 0:00:36]} 28. Qe3 {[%emt 0:02:52]} e5 {[%emt 0:00:33]} 29. Qxa7 {[%emt 0:00:25]} Rc3 {[%emt 0:09:31]} 30. Re3 {[%emt 0:02:25]} Rc7 {[%emt 0:01:55]} 31. g3 {[%emt 0:02:26]} d5 {[%emt 0:00:05]} 32. Rd1 {[%emt 0:01:45]} Qd6 {[%emt 0:01:37]} 33. Qa3 {[%emt 0:00:27]} Rc4 {[%emt 0:00:26]} 34. Qb2 {[%emt 0:00:29]} d4 {[%emt 0:00:41]} 35. a3 {[%emt 0:00:27]} Rgc8 {[%emt 0:06:34]} 36. Bxb7 {[%emt 0:00:21]} Rc2 {[%emt 0:00:22]} 37. Qb1 {[%emt 0:00:41]} R8c4 {[%emt 0:04:10]} 38. Bg2 {[%emt 0:00:37]} dxe3 {[%emt 0:08:49]} 39. Rxd6 {[%emt 0:00:18]} exf2+ {[%emt 0:00:01]} 40. Kf1 {[%emt 0:00:37]} Ng4 {[%emt 0:30:25]} 41. Rd8+ {[%emt 0:17:35]} Kg7 {[%emt 0:00:00]} 42. Rd7+ {[%emt 0:05:02]} Kf8 {[%emt 0:00:00]} 43. Rd8+ {[%emt 0:00:38]} Ke7 {[%emt 0:00:00]} 44. Rd2 {[%emt 0:00:32]} Rc1+ {[%emt 0:00:00]} 45. Qxc1 {[%emt 0:02:09]} Rxc1+ {[%emt 0:00:00]} 46. Ke2 {[%emt 0:00:04]} Re1+ {[%emt 0:00:00]} 47. Kf3 {[%emt 0:05:11]} e4+ {[%emt 0:00:00]} 48. Kxg4 {[%emt 0:00:01]} e3 {[%emt 0:00:00]} 49. Rd4 {[%emt 0:00:03]} e2 {[%emt 0:00:00]} 50. Re4+ {[%emt 0:00:02]} Kd6 {[%emt 0:00:00]} 51. Rxe2 {[%emt 0:00:03]} Rxe2 {[%emt 0:00:00]} 52. Kf3 {[%emt 0:00:00]} Ra2 {[%emt 0:00:00]} 53. a4 {[%emt 0:00:29]} Rxa4 {[%emt 0:00:09]} 54. Kxf2 {[%emt 0:00:18]} Ra2+ {[%emt 0:00:11]} 55. Kf3 {[%emt 0:01:37]} Rb2 {[%emt 0:00:01]} 56. h4 {[%emt 0:00:19]} Rxb4 {[%emt 0:00:34]} 57. Bf1 {[%emt 0:00:12]} Ke5 {[%emt 0:00:05]} 58. Be2 {[%emt 0:01:07]} Rb3+ {[%emt 0:00:24]} 59. Kg4 {[%emt 0:00:28]} Re3 {[%emt 0:00:14]} 60. Bf1 {[%emt 0:01:40]} Rb3 {[%emt 0:02:04]} 61. Be2 {[%emt 0:01:06]} Kd4 {[%emt 0:00:26]} 62. Kf4 {[%emt 0:00:32]} Rb4 {[%emt 0:00:35]} 63. g4 {[%emt 0:00:36]} Rb2 {[%emt 0:00:15]} 64. Bf3 {[%emt 0:00:29]} Rxb5 {[%emt 0:00:12]} 65. g5 {[%emt 0:00:40]} Rb1 {[%emt 0:00:54]} 66. h5 {[%emt 0:00:29]} Rg1 {[%emt 0:00:27]} 67. Be4 {[%emt 0:01:08]} Rf1+ {[%emt 0:00:32]} 68. Bf3 {[%emt 0:00:00]} Rg1 {[%emt 0:00:26]} 69. Be4 {[%emt 0:00:06]} Rf1+ {[%emt 0:00:05]} 70. Bf3 Rd1 1/2-1/2

[Event "WSCC 50 Open 2017"]
[Site "?"]
[Date "2017.11.09"]
[Round "3"]
[White "Grant, Jonathan I M"]
[Black "Bagaturov, Giorgi"]
[Result "0-1"]
[ECO "D51"]
[WhiteElo "2179"]
[BlackElo "2399"]
[PlyCount "149"]
[EventDate "2017.??.??"]
[EventType "swiss"]
[EventCountry "ITA"]
[SourceTitle "Acqui Terme"]
[TimeControl "40/5400+30:1800+30"]
[WhiteClock "0:00:36"]
[BlackClock "0:02:52"]

1. c4 {[%emt 0:00:00]} e6 {[%emt 0:00:41]} 2. Nc3 {[%emt 0:01:57]} d5 {[%emt 0:00:17]} 3. d4 {[%emt 0:00:07]} Nf6 {[%emt 0:00:41]} 4. Bg5 {[%emt 0:00:48]} Nbd7 {[%emt 0:01:26]} 5. cxd5 {[%emt 0:01:34]} exd5 {[%emt 0:00:08]} 6. e3 {[%emt 0:00:55]} Be7 {[%emt 0:02:38]} 7. Bd3 {[%emt 0:01:32]} O-O {[%emt 0:12:09]} 8. Qc2 {[%emt 0:01:30]} b6 {[%emt 0:02:15]} 9. Nge2 {[%emt 0:13:09]} Bb7 {[%emt 0:09:35]} 10. Ng3 {[%emt 0:03:59]} c5 {[%emt 0:06:26]} 11. Nf5 {[%emt 0:06:38]} cxd4 {[%emt 0:02:42]} 12. exd4 {[%emt 0:02:42]} g6 {[%emt 0:01:54]} 13. Nxe7+ {[%emt 0:13:22]} Qxe7+ {[%emt 0:00:05]} 14. Kf1 {[%emt 0:01:49]} Qb4 {[%emt 0:11:20]} 15. Ne2 {[%emt 0:08:35]} Rac8 {[%emt 0:15:09]} 16. Qd2 {[%emt 0:02:57]} Qd6 {[%emt 0:02:05]} 17. Qf4 {[%emt 0:02:20]} Qe6 {[%emt 0:01:42]} 18. h4 {[%emt 0:02:48]} Rfe8 {[%emt 0:06:42]} 19. Rh3 {[%emt 0:05:35]} Nh5 {[%emt 0:03:19]} 20. Qd2 {[%emt 0:05:57]} Ndf6 {[%emt 0:04:31]} 21. Nf4 {[%emt 0:04:05]} Qd7 {[%emt 0:02:57]} 22. Nxh5 {[%emt 0:07:03]} Nxh5 {[%emt 0:00:04]} 23. Be2 {[%emt 0:05:15]} Ng7 {[%emt 0:04:55]} 24. h5 {[%emt 0:01:16]} Bc6 {[%emt 0:02:46]} 25. Kg1 {[%emt 0:02:11]} Bb5 {[%emt 0:00:46]} 26. Bf3 {[%emt 0:00:21]} Qf5 {[%emt 0:01:01]} 27. hxg6 {[%emt 0:01:32]} fxg6 {[%emt 0:00:37]} 28. Qf4 {[%emt 0:01:07]} Qxf4 {[%emt 0:02:09]} 29. Bxf4 {[%emt 0:00:01]} Rcd8 {[%emt 0:00:34]} 30. Be5 {[%emt 0:01:06]} Bd3 {[%emt 0:01:03]} 31. Rc1 {[%emt 0:00:59]} Bf5 {[%emt 0:00:38]} 32. g4 {[%emt 0:00:08]} Be6 {[%emt 0:01:59]} 33. Rc7 {[%emt 0:00:23]} Rd7 {[%emt 0:00:55]} 34. Rxd7 {[%emt 0:00:08]} Bxd7 {[%emt 0:00:03]} 35. Bxd5+ {[%emt 0:00:06]} Be6 {[%emt 0:00:15]} 36. Bxe6+ {[%emt 0:00:36]} Nxe6 {[%emt 0:00:05]} 37. Ra3 {[%emt 0:01:49]} Re7 {[%emt 0:00:36]} 38. Kf1 {[%emt 0:01:39]} Kf7 {[%emt 0:00:19]} 39. d5 {[%emt 0:00:53]} Ng5 {[%emt 0:01:48]} 40. f4 {[%emt 0:00:16]} Ne4 {[%emt 0:30:13]} 41. Rd3 {[%emt 0:10:50]} Nc5 {[%emt 0:00:00]} 42. Rh3 {[%emt 0:01:47]} Ke8 {[%emt 0:00:00]} 43. Rc3 {[%emt 0:01:08]} Rd7 {[%emt 0:00:00]} 44. d6 {[%emt 0:02:49]} a5 {[%emt 0:00:00]} 45. Kg2 {[%emt 0:03:07]} Rf7 {[%emt 0:00:00]} 46. Kf3 {[%emt 0:02:31]} Kd7 {[%emt 0:00:00]} 47. Ke3 {[%emt 0:01:25]} h5 {[%emt 0:00:00]} 48. f5 {[%emt 0:02:31]} gxf5 {[%emt 0:00:00]} 49. gxh5 {[%emt 0:00:07]} Rh7 {[%emt 0:00:00]} 50. Kf4 {[%emt 0:03:29]} Rxh5 {[%emt 0:00:00]} 51. Rg3 {[%emt 0:01:29]} Kc6 {[%emt 0:01:09]} 52. Ke3 {[%emt 0:02:57]} Rh1 {[%emt 0:02:08]} 53. Rf3 {[%emt 0:02:04]} Rh5 {[%emt 0:03:14]} 54. Bf4 {[%emt 0:00:24]} Rh4 {[%emt 0:00:35]} 55. Rf2 {[%emt 0:00:52]} Rh3+ {[%emt 0:00:23]} 56. Rf3 {[%emt 0:00:44]} Rxf3+ {[%emt 0:00:26]} 57. Kxf3 {[%emt 0:00:00]} Ne4 {[%emt 0:00:44]} 58. Be3 {[%emt 0:00:39]} Nxd6 {[%emt 0:00:15]} 59. Kf4 {[%emt 0:00:46]} b5 {[%emt 0:00:57]} 60. Bd4 {[%emt 0:00:37]} Kd5 {[%emt 0:00:24]} 61. Bc3 {[%emt 0:00:30]} b4 {[%emt 0:00:26]} 62. Bf6 {[%emt 0:00:29]} Kc4 {[%emt 0:00:40]} 63. b3+ {[%emt 0:00:33]} Kd3 {[%emt 0:00:18]} 64. Ke5 {[%emt 0:00:33]} Nb7 {[%emt 0:00:29]} 65. Kxf5 {[%emt 0:00:25]} Kc2 {[%emt 0:00:08]} 66. Ke4 {[%emt 0:00:14]} Kb1 {[%emt 0:00:05]} 67. Kd3 {[%emt 0:00:32]} Kxa2 {[%emt 0:00:07]} 68. Kc4 {[%emt 0:00:38]} Nd6+ {[%emt 0:00:09]} 69. Kd5 {[%emt 0:00:15]} Kxb3 {[%emt 0:01:46]} 70. Kxd6 {[%emt 0:00:17]} Kc4 {[%emt 0:00:03]} 71. Ke5 {[%emt 0:00:22]} a4 {[%emt 0:00:08]} 72. Ke4 {[%emt 0:00:11]} a3 {[%emt 0:00:18]} 73. Ke3 {[%emt 0:00:56]} Kb3 {[%emt 0:00:13]} 74. Kd2 {[%emt 0:01:05]} Ka2 {[%emt 0:00:05]} 75. Be7 0-1

[Event "WSCC 50 Open 2017"]
[Site "?"]
[Date "2017.11.09"]
[Round "3"]
[White "Chan, Peng Kong"]
[Black "Buchal, Stephan"]
[Result "0-1"]
[ECO "A10"]
[WhiteElo "2172"]
[BlackElo "2347"]
[PlyCount "80"]
[EventDate "2017.??.??"]
[EventType "swiss"]
[EventCountry "ITA"]
[SourceTitle "Acqui Terme"]
[TimeControl "40/5400+30:1800+30"]
[WhiteClock "0:21:53"]
[BlackClock "0:02:01"]

1. c4 {[%emt 0:00:00]} g6 {[%emt 0:00:19]} 2. g3 {[%emt 0:00:00]} Bg7 {[%emt 0:00:12]} 3. Bg2 {[%emt 0:00:00]} d6 {[%emt 0:00:34]} 4. Nc3 {[%emt 0:00:29]} e5 {[%emt 0:00:28]} 5. e3 {[%emt 0:03:35]} Nc6 {[%emt 0:13:02]} 6. Nge2 {[%emt 0:00:37]} h5 {[%emt 0:00:15]} 7. d3 {[%emt 0:10:24]} h4 {[%emt 0:01:06]} 8. Nd5 {[%emt 0:02:59]} Nce7 {[%emt 0:13:57]} 9. Rb1 {[%emt 0:10:25]} c6 {[%emt 0:02:16]} 10. Nxe7 {[%emt 0:00:06]} Nxe7 {[%emt 0:00:10]} 11. Qd2 {[%emt 0:03:30]} Be6 {[%emt 0:04:04]} 12. b3 {[%emt 0:02:05]} Qd7 {[%emt 0:03:52]} 13. Ba3 {[%emt 0:01:11]} Rd8 {[%emt 0:06:55]} 14. Nc3 {[%emt 0:08:28]} Bh3 {[%emt 0:07:54]} 15. Bf3 {[%emt 0:02:05]} Qf5 {[%emt 0:07:10]} 16. Qe2 {[%emt 0:03:45]} e4 {[%emt 0:03:07]} 17. Nxe4 {[%emt 0:03:39]} Qa5+ {[%emt 0:00:12]} 18. Qd2 {[%emt 0:02:34]} Qxa3 {[%emt 0:00:23]} 19. g4 {[%emt 0:00:51]} f5 {[%emt 0:04:07]} 20. Ng5 {[%emt 0:02:51]} fxg4 {[%emt 0:02:09]} 21. Nxh3 {[%emt 0:02:32]} gxh3 {[%emt 0:01:42]} 22. d4 {[%emt 0:03:50]} O-O {[%emt 0:01:10]} 23. Bg4 {[%emt 0:00:05]} c5 {[%emt 0:06:13]} 24. d5 {[%emt 0:02:54]} Rf6 {[%emt 0:04:12]} 25. O-O {[%emt 0:00:10]} Qb4 {[%emt 0:04:08]} 26. Qc2 {[%emt 0:01:47]} Nf5 {[%emt 0:03:08]} 27. Bxh3 {[%emt 0:00:09]} Re8 {[%emt 0:04:54]} 28. Rbd1 {[%emt 0:00:48]} Rf7 {[%emt 0:01:02]} 29. Rd3 {[%emt 0:01:32]} Qa3 {[%emt 0:00:46]} 30. Rb1 {[%emt 0:00:21]} Qa5 {[%emt 0:00:17]} 31. Rbd1 {[%emt 0:00:26]} Qd8 {[%emt 0:00:41]} 32. Kh1 {[%emt 0:00:16]} Qe7 {[%emt 0:01:15]} 33. Rg1 {[%emt 0:00:23]} Qe4+ {[%emt 0:01:53]} 34. Bg2 {[%emt 0:00:06]} Qe5 {[%emt 0:00:15]} 35. Qd1 {[%emt 0:01:23]} Kh7 {[%emt 0:01:10]} 36. Qg4 {[%emt 0:06:39]} Qf6 {[%emt 0:01:45]} 37. Rd2 {[%emt 0:03:20]} Nh6 {[%emt 0:00:16]} 38. Qh3 {[%emt 0:00:39]} g5 {[%emt 0:00:44]} 39. Bf1 {[%emt 0:01:08]} g4 {[%emt 0:00:28]} 40. Bd3+ {[%emt 0:00:05]} Kh8 {[%emt 0:30:18]} 0-1

[Event "WSCC 50 Open 2017"]
[Site "?"]
[Date "2017.11.10"]
[Round "4"]
[White "Buchal, Stephan"]
[Black "Baimurzin, Aitkazy"]
[Result "1/2-1/2"]
[ECO "A11"]
[WhiteElo "2347"]
[BlackElo "2170"]
[PlyCount "115"]
[EventDate "2017.??.??"]
[EventType "swiss"]
[EventCountry "ITA"]
[SourceTitle "Acqui Terme"]
[TimeControl "40/5400+30:1800+30"]
[WhiteClock "0:00:54"]
[BlackClock "0:05:43"]

1. e4 {[%emt 0:00:00]} a6 {[%emt 0:01:59]} 2. d4 {[%emt 0:03:54]} b5 {[%emt 0:00:19]} 3. Nf3 {[%emt 0:00:20]} Bb7 {[%emt 0:00:14]} 4. Bd3 {[%emt 0:00:17]} Nf6 {[%emt 0:00:21]} 5. Qe2 {[%emt 0:06:54]} e6 {[%emt 0:01:01]} 6. a4 {[%emt 0:02:33]} b4 {[%emt 0:04:49]} 7. Nbd2 {[%emt 0:02:38]} d6 {[%emt 0:03:26]} 8. O-O {[%emt 0:06:29]} Be7 {[%emt 0:02:51]} 9. e5 {[%emt 0:11:48]} Nd5 {[%emt 0:03:17]} 10. Ne4 Nd7 {[%emt 0:05:08]} 11. Bd2 {[%emt 0:11:00]} h6 {[%emt 0:08:54]} 12. c4 {[%emt 0:08:18]} bxc3 {[%emt 0:01:29]} 13. bxc3 {[%emt 0:00:04]} dxe5 {[%emt 0:06:31]} 14. Rfb1 {[%emt 0:03:18]} Qc8 {[%emt 0:06:49]} 15. dxe5 {[%emt 0:02:24]} a5 {[%emt 0:04:29]} 16. Ng3 {[%emt 0:05:26]} Nc5 {[%emt 0:07:07]} 17. Bb5+ {[%emt 0:06:58]} Kf8 {[%emt 0:05:03]} 18. Nd4 {[%emt 0:01:57]} c6 {[%emt 0:01:34]} 19. Bc4 {[%emt 0:02:41]} Qc7 {[%emt 0:00:46]} 20. f4 {[%emt 0:07:56]} g6 {[%emt 0:01:15]} 21. Rf1 {[%emt 0:01:09]} Nb6 {[%emt 0:03:07]} 22. Ba2 {[%emt 0:07:40]} Ba6 {[%emt 0:02:20]} 23. c4 {[%emt 0:00:25]} Nd5 {[%emt 0:05:23]} 24. Nb5 {[%emt 0:00:52]} cxb5 {[%emt 0:07:08]} 25. cxd5 {[%emt 0:00:02]} b4 {[%emt 0:00:30]} 26. Qf3 {[%emt 0:01:26]} exd5 {[%emt 0:01:10]} 27. Qxd5 {[%emt 0:00:25]} Bd8 {[%emt 0:02:14]} 28. Rfc1 {[%emt 0:03:42]} Bb7 {[%emt 0:02:41]} 29. Qxc5+ {[%emt 0:00:33]} Qxc5+ {[%emt 0:00:17]} 30. Rxc5 {[%emt 0:00:01]} Bb6 {[%emt 0:02:09]} 31. Be3 {[%emt 0:00:04]} Kg7 {[%emt 0:00:49]} 32. Nf1 {[%emt 0:01:49]} Bxc5 {[%emt 0:00:36]} 33. Bxc5 {[%emt 0:00:02]} Rhc8 {[%emt 0:00:31]} 34. Bf2 {[%emt 0:02:56]} Rc3 {[%emt 0:01:05]} 35. e6 {[%emt 0:00:38]} f6 {[%emt 0:00:26]} 36. Rd1 {[%emt 0:00:34]} Bc6 {[%emt 0:01:05]} 37. Bd5 {[%emt 0:00:42]} Bxa4 {[%emt 0:00:53]} 38. Bxa8 {[%emt 0:00:31]} Bxd1 {[%emt 0:00:08]} 39. Ne3 {[%emt 0:00:33]} Rc1 {[%emt 0:00:17]} 40. Be1 {[%emt 0:00:22]} Bb3 {[%emt 0:31:29]} 41. Kf2 {[%emt 0:03:33]} Bxe6 {[%emt 0:00:00]} 42. Bd2 {[%emt 0:05:44]} Rc8 {[%emt 0:00:00]} 43. Be4 {[%emt 0:00:42]} Rb8 {[%emt 0:00:00]} 44. Nc2 {[%emt 0:04:17]} f5 {[%emt 0:00:00]} 45. Bd3 {[%emt 0:01:02]} Kf7 {[%emt 0:00:00]} 46. Ke3 {[%emt 0:02:56]} b3 {[%emt 0:00:00]} 47. Na3 {[%emt 0:04:46]} a4 {[%emt 0:00:00]} 48. Bc3 {[%emt 0:04:31]} b2 {[%emt 0:00:12]} 49. Nb1 {[%emt 0:04:22]} Ba2 {[%emt 0:00:56]} 50. Bc2 {[%emt 0:01:24]} Ke7 {[%emt 0:06:21]} 51. Be5 {[%emt 0:02:17]} Bxb1 {[%emt 0:00:24]} 52. Bxb1 {[%emt 0:00:07]} Rb3+ {[%emt 0:00:29]} 53. Kd2 {[%emt 0:00:12]} a3 {[%emt 0:00:38]} 54. Kc2 {[%emt 0:00:44]} Rb6 {[%emt 0:00:27]} 55. Bc3 {[%emt 0:00:58]} Kd6 {[%emt 0:00:37]} 56. Ba2 {[%emt 0:00:31]} Kc5 {[%emt 0:00:22]} 57. Bg7 {[%emt 0:00:27]} h5 {[%emt 0:01:11]} 58. Bf8+ {[%emt 0:00:12]} 1/2-1/2